bitfinex/quotes_ETHUSD_20250430
["timestamp","ask_amount","ask_price","bid_price","bid_amount"]
[1745981920467,0.60829858,1806.3,1806.1,12.46547261]
[1745981920667,0.3111952,1806.3,1806.1,12.46547261]
[1745981921003,0.3111952,1806.3,1806.1,6.9288887]
[1745981921801,5.3772,1806.4,1806.1,6.9288887]
[1745981922107,0.29710338,1806.3,1806.1,6.9288887]
[1745981922395,5.3772,1806.4,1806.1,6.9288887]
[1745981922804,0.29710338,1806.3,1806.1,12.46551206]
[1745981922966,0.29710338,1806.3,1806.1,12.46551158]
[1745981923167,5.3772,1806.4,1806.1,12.46551158]
[1745981923504,0.29710338,1806.3,1806.1,12.46551158]
[1745981923704,0.3111844,1806.3,1806.1,12.46551158]
[1745981924000,0.3111844,1806.3,1806.1,6.9288887]
[1745981924169,0.3111844,1806.3,1806.1,12.46546091]
[1745981924501,5.3772,1806.4,1806.1,12.46546091]
[1745981924703,0.29710338,1806.3,1806.1,12.46546091]
[1745981924880,5.3772,1806.4,1806.1,12.46546091]
[1745981925081,0.29710338,1806.3,1806.1,12.46546091]
[1745981925295,5.3772,1806.4,1806.1,12.46546091]
[1745981925474,0.29710338,1806.3,1806.1,12.46546091]
[1745981925675,5.3772,1806.4,1806.1,12.46546091]
[1745981925904,0.29710338,1806.3,1806.1,12.46546091]
[1745981926204,5.3772,1806.4,1806.1,12.46546091]
[1745981926515,0.29710338,1806.3,1806.1,12.46546091]
[1745981926696,5.3772,1806.4,1806.1,12.46546091]
[1745981926895,0.29710338,1806.3,1806.1,12.46546091]
[1745981927068,5.3772,1806.4,1806.1,6.92887969]
[1745981927277,0.29710338,1806.3,1806.2,5.53640632]
[1745981927474,5.3772,1806.4,1806.2,5.53640632]
[1745981927707,0.60835963,1806.3,1806.2,5.53640632]
[1745981928711,0.60835963,1806.3,1806.1,6.92887969]
[1745981929312,0.29710338,1806.3,1806.1,6.92887969]
[1745981929511,5.3772,1806.4,1806.1,6.92887969]
[1745981929714,0.29710338,1806.3,1806.1,5.58657221]
[1745981929916,5.3772,1806.4,1806.1,5.58657221]
[1745981930104,0.29710338,1806.3,1806.1,11.12317961]
[1745981930304,5.3772,1806.4,1806.1,11.12317961]
[1745981930825,0.29710338,1806.3,1806.2,5.53637181]
[1745981931004,5.3772,1806.4,1806.2,5.53637181]
[1745981931320,0.60851438,1806.3,1806.2,5.53637181]
[1745981933422,0.60851438,1806.3,1806.1,5.58657221]
[1745981933712,0.311411,1806.3,1806.1,6.92887454]
[1745981933936,0.311411,1806.3,1806.1,12.46546818]
[1745981934115,0.311411,1806.2,1806.1,6.92887454]
[1745981935550,0.311411,1806.2,1806.1,7.99230416]
[1745981952139,0.311411,1806.2,1806.1,5.58657221]
[1745981953573,0.311411,1806.2,1806.1,6.65000183]
[1745981965827,0.311411,1806.2,1806.1,0.05]
[1745981965828,1.101011,1806.2,1806.1,0.05]
[1745981966027,0.60829435,1806.2,1806.1,0.05]
[1745981970349,1.37919435,1806.2,1806.1,0.05]
[1745981974049,5.18629435,1806.2,1806.1,1.11342962]
[1745981974264,5.18629435,1806.2,1806.1,0.05]
[1745981974649,5.18629435,1806.2,1806.1,1.11342962]
[1745981974946,4.889411,1806.2,1806.1,1.11342962]
[1745981975143,4.889411,1806.2,1806.1,0.05]
[1745981975343,5.18354337,1806.2,1806.1,0.05]
[1745981976748,5.97774337,1806.2,1806.1,0.05]
[1745981977180,6.57551771,1806.2,1806.1,0.05]
[1745981977383,5.97774337,1806.2,1806.1,0.05]
[1745981980582,8.97174337,1806.2,1806.1,0.05]
[1745981980782,10.03517299,1806.2,1806.1,0.05]
[1745981981174,8.97174337,1806.2,1806.1,0.05]
[1745981982209,3.60554337,1806.2,1806.1,0.05]
[1745981982410,5.18154337,1806.2,1806.1,0.05]
[1745981991730,0.60554337,1806.2,1806.1,0.05]
[1745982002411,1.40664337,1806.2,1806.1,0.05]
[1745982006520,0.60554337,1806.2,1806.1,0.05]
[1745982012329,0.60554337,1806.2,1806.1,0.8747]
[1745982012485,5.18054337,1806.2,1806.1,0.8747]
[1745982019338,5.18054337,1806.2,1806.1,0.05]
[1745982020633,8.97444337,1806.2,1806.1,0.05]
[1745982025133,8.18054337,1806.2,1806.1,0.05]
[1745982028855,5.18054337,1806.2,1806.1,0.05]
[1745982038557,5.96504337,1806.2,1806.1,0.05]
[1745982042965,5.18054337,1806.2,1806.1,0.05]
[1745982049336,5.18054337,1806.2,1806.1,0.8173]
[1745982050243,5.12517698,1806.2,1806.1,0.8173]
[1745982053284,5.12517698,1806.2,1806.1,0.05]
[1745982063327,8.88957698,1806.2,1806.1,0.05]
[1745982065305,9.30861158,1806.2,1806.1,0.05]
[1745982066588,15.04504578,1806.2,1806.1,0.05]
[1745982068338,11.62401118,1806.2,1806.1,0.05]
[1745982068891,14.62401118,1806.2,1806.1,0.05]
[1745982069149,13.85961118,1806.2,1806.1,0.05]
[1745982072536,8.12317698,1806.2,1806.1,0.05]
[1745982095092,8.93277698,1806.2,1806.1,0.05]
[1745982095275,8.93177698,1806.2,1806.1,0.05]
[1745982095489,14.77077698,1806.2,1806.1,0.05]
[1745982096081,20.50721118,1806.2,1806.1,0.05]
[1745982110182,20.50167454,1806.2,1806.1,0.05]
[1745982110688,21.45316719,1806.2,1806.1,0.05]
[1745982110895,20.50167454,1806.2,1806.1,0.05]
[1745982116515,20.25116657,1806.2,1806.1,0.05]
[1745982122892,20.5626248,1806.2,1806.1,0.05]
[1745982127295,26.64911023,1806.2,1806.1,0.05]
[1745982129205,27.89793731,1806.2,1806.1,0.05]
[1745982129535,3.0,1805.7,1805.3,0.8331]
[1745982129708,6.34757915,1805.6,1805.3,0.8331]
[1745982129906,0.31145823,1805.5,1805.3,0.8331]
[1745982130329,0.28626025,1805.4,1805.3,0.8331]
[1745982130523,5.839,1805.3,1805.1,0.05]
[1745982130725,15.08175549,1805.2,1805.1,0.05]
[1745982131036,15.39321372,1805.2,1805.1,0.05]
[1745982131423,13.9040976,1805.2,1805.1,0.05]
[1745982132298,15.39321372,1805.2,1805.1,0.05]
[1745982134060,15.81681225,1805.2,1805.1,0.05]
[1745982137745,16.60211225,1805.2,1805.1,0.05]
[1745982138851,15.81681225,1805.2,1805.1,0.05]
[1745982156330,10.9040976,1805.2,1805.1,0.8581]
[1745982156533,9.3340976,1805.2,1805.1,0.8581]
[1745982156686,13.9050976,1805.2,1805.1,0.8581]
[1745982166531,10.9050976,1805.2,1805.1,0.8581]
[1745982175582,5.1686634,1805.2,1805.1,0.8581]
[1745982175791,5.1686634,1805.2,1805.1,1.49790715]
[1745982175986,5.1686634,1805.2,1805.1,7.03776643]
[1745982176160,5.1686634,1805.2,1805.1,1.49790715]
[1745982176483,4.85720517,1805.2,1805.1,0.8581]
[1745982178392,5.16835867,1805.2,1805.1,0.8581]
[1745982187209,5.16835867,1805.2,1805.1,6.39795928]
[1745982187412,4.571,1805.2,1805.1,6.39795928]
[1745982187563,4.569,1805.5,1805.3,0.7719]
[1745982187766,0.28223863,1805.4,1805.3,1.40302517]
[1745982188189,0.28223863,1805.4,1805.3,0.7719]
[1745982188396,0.59350358,1805.4,1805.3,0.7719]
[1745982204836,0.59350358,1805.4,1805.2,0.75]
[1745982205774,0.59350358,1805.4,1805.3,0.7932]
[1745982206171,0.59350358,1805.4,1805.1,0.8432]
[1745982207274,0.31126495,1805.3,1805.1,0.8432]
[1745982207575,0.28372604,1805.2,1805.1,0.8432]
[1745982207749,0.31126495,1805.3,1805.1,1.48151754]
[1745982207950,0.28372604,1805.2,1805.1,1.48151754]
[1745982208150,0.31126495,1805.2,1805.1,1.48151754]
[1745982208716,0.31126495,1805.2,1805.1,0.05]
[1745982209698,0.5949359,1805.2,1805.1,0.05]
[1745982212698,0.5949359,1805.2,1805.1,0.8298]
[1745982214719,5.1619359,1805.2,1805.1,0.05]
[1745982216204,5.9716359,1805.2,1805.1,0.05]
[1745982217120,5.1619359,1805.2,1805.1,0.05]
[1745982225393,5.1619359,1805.2,1805.1,0.8442]
[1745982228419,5.1619359,1805.2,1805.1,0.05]
[1745982233045,5.1619359,1805.2,1805.1,0.8035]
[1745982238143,5.1619359,1805.2,1805.1,0.05]
[1745982247879,5.1623049,1805.2,1805.1,0.05]
[1745982249644,0.5953049,1805.2,1805.1,8.07344199]
[1745982249847,0.31163395,1805.2,1805.1,8.07344199]
[1745982251973,4.566,1805.5,1805.2,5.53933443]
[1745982251974,0.31163395,1805.4,1805.2,5.53933443]
[1745982252174,0.31163395,1805.4,1805.3,0.55393344]
[1745982253175,0.31163395,1805.4,1805.3,6.09317899]
[1745982253376,0.31163395,1805.4,1805.3,0.55393344]
[1745982257880,4.566,1805.5,1805.3,0.55393344]
[1745982258462,4.565,1805.6,1805.4,0.8321]
[1745982259291,0.31107674,1805.5,1805.4,0.8321]
[1745982259486,0.31107674,1805.5,1805.4,1.52461427]
[1745982261792,0.31107674,1805.5,1805.3,1.35023344]
[1745982261991,0.31107674,1805.4,1805.3,1.35023344]
[1745982262288,0.31107674,1805.4,1805.1,0.8463]
[1745982263085,0.31107674,1805.3,1805.1,0.05]
[1745982263902,4.87607674,1805.2,1805.1,0.05]
[1745982265858,5.16029842,1805.2,1805.1,0.05]
[1745982267162,5.92449842,1805.2,1805.1,0.05]
[1745982287438,5.92432046,1805.2,1805.1,0.05]
[1745982287614,5.16012046,1805.2,1805.1,0.05]
[1745982291658,5.16077511,1805.2,1805.1,0.05]
[1745982294748,5.98957511,1805.2,1805.1,0.05]
[1745982298314,8.98957511,1805.2,1805.1,0.05]
[1745982298520,10.62675782,1805.2,1805.1,0.05]
[1745982303497,8.16077511,1805.2,1805.1,0.05]
[1745982308510,8.93197511,1805.2,1805.1,0.05]
[1745982308699,10.63595782,1805.2,1805.1,0.05]
[1745982309292,10.68405782,1805.2,1805.1,0.05]
[1745982310089,16.42049202,1805.2,1805.1,0.05]
[1745982313024,34.73249202,1805.2,1805.1,0.05]
[1745982318038,41.44519343,1805.2,1805.1,0.05]
[1745982318196,49.78164103,1805.2,1805.1,0.05]
[1745982318399,49.15849202,1805.2,1805.1,0.05]
[1745982320637,54.69804442,1805.2,1805.1,0.05]
[1745982321137,49.15849202,1805.2,1805.1,0.05]
[1745982322606,47.45450931,1805.2,1805.1,0.05]
[1745982325241,33.57850931,1805.2,1805.1,0.05]
[1745982325944,33.02850931,1805.2,1805.1,0.05]
[1745982327413,33.57850931,1805.2,1805.1,0.05]
[1745982330657,39.11806171,1805.2,1805.1,0.05]
[1745982330850,33.57850931,1805.2,1805.1,0.05]
[1745982331742,34.08819732,1805.2,1805.1,0.05]
[1745982333945,0.7515,1805.0,1804.2,0.8051]
[1745982334142,3.79286224,1804.9,1804.2,0.8051]
[1745982334454,3.0,1804.7,1804.2,0.8051]
[1745982334642,0.31155343,1804.6,1804.2,0.8051]
[1745982335059,0.79286224,1804.5,1804.2,0.8051]
[1745982335265,4.565,1804.4,1804.2,0.8051]
[1745982335879,0.79286224,1804.3,1804.2,0.8051]
[1745982336096,1.10441567,1804.3,1804.2,0.8051]
[1745982336279,0.31155343,1804.3,1804.2,0.8051]
[1745982336444,1.10441567,1804.3,1804.2,1.44489653]
[1745982339925,1.10441567,1804.3,1804.2,8.74692508]
[1745982340280,0.79286224,1804.3,1804.2,8.691502]
[1745982340814,4.565,1804.8,1804.3,0.7751]
[1745982341118,0.79286224,1804.7,1804.3,0.7751]
[1745982341324,0.79286224,1804.7,1804.4,0.7627]
[1745982341486,0.31129331,1804.6,1804.4,0.7627]
[1745982342098,0.79286224,1804.5,1804.4,0.7627]
[1745982342505,1.10415555,1804.5,1804.4,0.7627]
[1745982346449,5.66915555,1804.5,1804.4,0.7627]
[1745982347859,5.66915555,1804.5,1804.3,0.8077]
[1745982348715,0.31129331,1804.4,1804.3,0.8077]
[1745982348923,1.10239107,1804.4,1804.3,0.8077]
[1745982349679,0.7883,1804.3,1804.1,0.05]
[1745982349813,1.70398271,1804.2,1804.1,0.05]
[1745982350014,5.49452895,1804.2,1804.1,0.05]
[1745982350213,2.49452895,1804.2,1804.1,0.05]
[1745982350456,2.80582226,1804.2,1804.1,0.05]
[1745982350754,1.10183955,1804.2,1804.1,0.05]
[1745982359878,2.80582226,1804.2,1804.1,0.05]
[1745982360881,7.14962226,1804.2,1804.1,0.05]
[1745982361173,13.51725642,1804.2,1804.1,0.05]
[1745982361368,14.21798877,1804.2,1804.1,0.05]
[1745982362041,9.88003192,1804.1,1803.4,0.7964]
[1745982362251,1.70398271,1803.8,1803.4,0.7964]
[1745982362453,0.78166366,1803.7,1803.4,0.7964]
[1745982362639,4.565,1803.6,1803.4,0.7964]
[1745982363076,0.78166366,1803.5,1803.4,0.7964]
[1745982363450,1.09295697,1803.5,1803.4,0.7964]
[1745982365183,1.09295697,1803.5,1803.2,0.7863]
[1745982365387,0.31129331,1803.4,1803.2,0.7863]
[1745982365741,0.78166366,1803.3,1803.2,0.7863]
[1745982366492,4.565,1803.6,1803.2,0.7863]
[1745982366699,0.78166366,1803.3,1803.2,0.7863]
[1745982366885,4.565,1803.6,1803.2,0.7863]
[1745982367551,0.77873799,1803.5,1803.2,0.7863]
[1745982368046,0.77873799,1803.5,1803.2,1.59492768]
[1745982368247,0.77873799,1803.5,1803.3,0.7998]
[1745982373585,5.34473799,1803.5,1803.4,0.7587]
[1745982375301,5.34473799,1803.5,1803.4,6.29928151]
[1745982375803,5.34473799,1803.5,1803.4,0.7542]
[1745982376005,5.34473799,1803.5,1803.4,1.5545374]
[1745982376211,5.34473799,1803.5,1803.4,0.7542]
[1745982377280,5.65441112,1803.5,1803.4,0.7542]
[1745982380748,5.65441112,1803.5,1803.2,0.7742]
[1745982382032,0.30967313,1803.4,1803.2,0.7742]
[1745982382234,0.78061499,1803.3,1803.2,0.7742]
[1745982382934,1.09028812,1803.3,1803.2,0.7742]
[1745982383850,1.84708812,1803.3,1803.1,0.05]
[1745982384648,0.30967313,1803.2,1803.1,0.05]
[1745982384853,1.08968081,1803.2,1803.1,0.05]
[1745982400473,8.66568081,1803.2,1803.1,0.05]
[1745982404169,4.08968081,1803.2,1803.1,0.05]
[1745982404496,8.66568081,1803.2,1803.1,0.8813]
[1745982411606,8.66568081,1803.2,1803.1,0.05]
[1745982417289,5.66568081,1803.2,1803.1,0.05]
[1745982419319,1.08968081,1803.2,1803.1,2.53748271]
[1745982419616,5.66668081,1803.2,1803.1,3.35139996]
[1745982422739,5.66668081,1803.2,1803.1,8.89740406]
[1745982423157,1.08968081,1803.2,1803.1,8.89740406]
[1745982423810,1.08968081,1803.2,1803.1,8.95285562]
[1745982424008,0.30967313,1803.2,1803.1,8.89740406]
[1745982424210,0.30967313,1803.4,1803.2,5.54565539]
[1745982424411,0.77708147,1803.3,1803.2,0.8037]
[1745982425151,1.0867546,1803.3,1803.2,0.8037]
[1745982430373,1.0867546,1803.3,1803.2,6.40484897]
[1745982430738,1.0867546,1803.3,1803.2,5.60114897]
[1745982430939,1.0867546,1803.3,1803.2,6.30569653]
[1745982431165,1.0867546,1803.3,1803.2,7.74763447]
[1745982431880,1.0867546,1803.3,1803.2,2.20193794]
[1745982432176,1.0867546,1803.3,1803.1,8.1136829]
[1745982432177,1.0867546,1803.3,1803.1,0.81]
[1745982432747,0.30967313,1803.2,1803.1,0.81]
[1745982433455,0.30967313,1803.4,1803.1,0.81]
[1745982433661,0.77940058,1803.3,1803.1,0.81]
[1745982433893,0.30967313,1803.4,1803.1,0.81]
[1745982434180,0.77940058,1803.3,1803.1,0.81]
[1745982434474,0.30967313,1803.2,1803.1,0.81]
[1745982435978,0.30967313,1803.4,1803.1,0.81]
[1745982436370,0.77940058,1803.3,1803.1,0.81]
[1745982436678,4.577,1803.5,1803.1,0.81]
[1745982436679,0.30967313,1803.2,1803.1,0.81]
[1745982437476,0.30967313,1803.4,1803.1,0.81]
[1745982437689,0.77940058,1803.3,1803.1,0.81]
[1745982437896,0.30967313,1803.4,1803.1,0.81]
[1745982438095,0.77940058,1803.3,1803.1,0.81]
[1745982438299,0.30967313,1803.3,1803.1,0.81]
[1745982438898,0.30967313,1803.2,1803.1,0.81]
[1745982440161,0.30967313,1803.4,1803.1,0.81]
[1745982440361,0.77940058,1803.3,1803.1,0.81]
[1745982440702,0.30967313,1803.4,1803.1,0.81]
[1745982440905,0.77940058,1803.3,1803.1,0.81]
[1745982441110,0.30967313,1803.2,1803.1,0.81]
[1745982441991,0.30967313,1803.4,1803.1,7.71662166]
[1745982442197,0.77917974,1803.3,1803.2,1.70398271]
[1745982442505,0.30967313,1803.4,1803.2,1.70398271]
[1745982442701,0.77917974,1803.3,1803.2,1.70398271]
[1745982442907,0.30967313,1803.4,1803.2,1.70398271]
[1745982443109,1.08885287,1803.3,1803.2,1.70398271]
[1745982443291,0.30967313,1803.3,1803.2,1.70398271]
[1745982446580,0.30967313,1803.3,1803.2,2.46258271]
[1745982447007,0.30967313,1803.3,1803.2,8.81966547]
[1745982450325,4.567,1803.5,1803.4,0.8133]
[1745982450535,4.567,1803.5,1803.4,8.06236422]
[1745982450687,5.34673179,1803.5,1803.4,8.06236422]
[1745982451087,5.34673179,1803.5,1803.4,2.51728271]
[1745982451331,5.34673179,1803.5,1803.4,3.32353442]
[1745982451707,5.6576723,1803.5,1803.4,3.32353442]
[1745982451905,5.6576723,1803.5,1803.4,2.51728271]
[1745982452306,5.34673179,1803.5,1803.4,2.51728271]
[1745982452517,5.65766269,1803.5,1803.4,2.51728271]
[1745982454179,5.65766269,1803.5,1803.4,8.06236422]
[1745982454477,5.65766269,1803.5,1803.4,2.51728271]
[1745982454689,5.65766269,1803.5,1803.4,3.32353462]
[1745982459463,1.09066269,1803.5,1803.4,8.92406223]
[1745982459791,0.3109309,1803.5,1803.4,8.86861613]
[1745982459993,4.567,1803.6,1803.5,5.54477405]
[1745982460157,4.567,1803.6,1803.5,6.98611307]
[1745982460351,5.34849822,1803.6,1803.5,6.98611307]
[1745982460893,5.65884904,1803.6,1803.5,6.98611307]
[1745982461597,1.09184904,1803.6,1803.5,6.98611307]
[1745982463501,1.09184904,1803.6,1803.5,7.81451307]
[1745982463857,0.78149822,1803.6,1803.5,7.81451307]
[1745982464053,4.567,1803.8,1803.6,5.54433377]
[1745982464253,4.567,1803.8,1803.7,0.55443338]
[1745982464688,4.87718771,1803.8,1803.7,0.55443338]
[1745982465295,0.31018771,1803.8,1803.7,6.9256926]
[1745982465593,0.31018771,1803.9,1803.8,5.54385186]
[1745982465795,0.31018771,1803.9,1803.8,7.24783457]
[1745982465957,0.31018771,1803.9,1803.8,8.66518729]
[1745982468506,0.31018771,1803.9,1803.8,9.41698729]
[1745982468799,0.7856,1804.4,1804.0,5.54323725]
[1745982468959,4.567,1804.3,1804.1,7.24690621]
[1745982469366,4.567,1804.3,1804.1,1.70398271]
[1745982469870,0.30988664,1804.2,1804.1,1.70398271]
[1745982470070,0.30711479,1804.2,1804.1,7.2469127]
[1745982470270,0.30711479,1804.2,1804.1,2.50466524]
[1745982470485,0.30711479,1804.2,1804.1,1.70398271]
[1745982471217,0.30711479,1804.2,1804.1,7.30233586]
[1745982471376,0.30711479,1804.2,1804.1,8.5762127]
[1745982471586,0.30711479,1804.2,1804.1,11.63162919]
[1745982471911,0.30711479,1804.2,1804.1,17.7462127]
[1745982472107,4.566,1804.8,1804.6,5.54122482]
[1745982472309,0.78243647,1804.7,1804.6,5.54122482]
[1745982473187,0.78243647,1804.7,1804.6,5.59663307]
[1745982473398,0.78243647,1804.7,1804.6,5.54122482]
[1745982474314,0.78243647,1804.7,1804.6,5.59663309]
[1745982474509,0.78243647,1804.7,1804.6,6.90337445]
[1745982475915,4.566,1804.8,1804.6,6.90337445]
[1745982476092,0.78751105,1804.7,1804.6,1.36214963]
[1745982476284,4.566,1804.8,1804.6,1.36214963]
[1745982476484,0.78751105,1804.7,1804.6,1.36214963]
[1745982476685,4.566,1804.8,1804.6,1.36214963]
[1745982476982,0.78751105,1804.7,1804.6,1.36214963]
[1745982477407,4.566,1804.8,1804.6,1.36214963]
[1745982477919,0.78751105,1804.7,1804.6,1.36214963]
[1745982478111,4.566,1804.8,1804.6,6.90354384]
[1745982478414,4.566,1804.8,1804.7,0.69035438]
[1745982480516,4.566,1804.8,1804.6,1.36214963]
[1745982480716,4.566,1804.8,1804.7,7.24506987]
[1745982481115,0.8267,1805.0,1804.7,7.24506987]
[1745982481330,5.3907,1805.0,1804.7,1.70398271]
[1745982482940,5.3907,1805.0,1804.6,1.36214963]
[1745982483427,5.3907,1805.0,1804.6,6.95886267]
[1745982483628,5.3907,1805.0,1804.7,0.69588627]
[1745982484321,5.3907,1805.0,1804.6,1.36214963]
[1745982484484,4.564,1805.0,1804.6,1.36214963]
[1745982484685,0.8012,1804.9,1804.4,7.24578582]
[1745982484897,0.8012,1804.9,1804.4,7.30119618]
[1745982485117,0.8012,1804.9,1804.4,12.84300849]
[1745982485321,0.8012,1804.9,1804.4,7.24578468]
[1745982485822,0.8012,1804.9,1804.4,12.84299953]
[1745982486117,0.8012,1804.9,1804.5,6.8259996]
[1745982486325,0.8012,1804.9,1804.5,6.82585533]
[1745982488834,0.8012,1804.9,1804.5,6.82578544]
[1745982490043,0.8012,1804.9,1804.5,6.82596196]
[1745982490258,0.8012,1804.9,1804.5,1.28429995]
[1745982490462,0.8012,1804.9,1804.4,7.6633934]
[1745982490625,4.564,1804.9,1804.6,1.70398271]
[1745982490831,0.79435078,1804.8,1804.6,1.70398271]
[1745982491061,1.61965078,1804.8,1804.6,1.70398271]
[1745982491247,0.8253,1804.8,1804.6,1.70398271]
[1745982495171,0.8253,1804.8,1804.4,7.67108213]
[1745982495172,0.79435078,1804.7,1804.4,7.67108213]
[1745982495464,0.79435078,1804.7,1804.4,9.06757812]
[1745982496062,0.79435078,1804.7,1804.4,3.52578748]
[1745982496630,0.79435078,1804.7,1804.4,9.06777388]
[1745982499079,0.31058758,1804.6,1804.4,9.06777388]
[1745982500079,0.8253,1804.8,1804.4,9.06777388]
[1745982500380,0.79418536,1804.7,1804.4,9.06777388]
[1745982502076,0.31116959,1804.6,1804.4,9.06777388]
[1745982503180,0.31116959,1804.5,1804.4,9.06777388]
[1745982504886,0.31116959,1804.5,1804.4,3.52578748]
[1745982505250,4.87516959,1804.5,1804.1,3.1126348]
[1745982505589,1.58399948,1804.4,1803.9,2.12405961]
[1745982506084,0.31116959,1804.3,1803.9,7.6675162]
[1745982506651,1.10496907,1804.2,1803.9,7.6675162]
[1745982507559,0.31116959,1804.1,1803.9,2.12405961]
[1745982508383,0.31116959,1804.3,1803.9,2.12405961]
[1745982508586,0.79379948,1804.0,1803.9,2.89082912]
[1745982508784,0.31116959,1804.3,1803.9,2.89082912]
[1745982509011,0.79379948,1804.0,1803.9,2.89082912]
[1745982509155,0.31116959,1804.2,1803.9,2.47075222]
[1745982509555,0.31116959,1804.1,1803.9,2.47075222]
[1745982513720,4.87616959,1804.1,1803.9,1.70398271]
[1745982513894,4.565,1804.1,1803.9,1.70398271]
[1745982514212,0.8011,1804.0,1803.5,2.47568271]
[1745982514522,0.8011,1804.0,1803.5,1.70398271]
[1745982514814,0.78822994,1803.9,1803.5,2.36116236]
[1745982515029,0.8011,1803.8,1803.5,2.36116236]
[1745982515226,4.565,1803.7,1803.5,2.36116236]
[1745982516797,4.565,1803.7,1803.5,0.65717965]
[1745982516997,4.565,1803.7,1803.4,4.09611378]
[1745982517299,4.565,1803.7,1803.4,0.40760732]
[1745982517498,4.565,1803.7,1803.3,7.24926203]
[1745982518424,4.565,1803.7,1803.3,7.66634965]
[1745982520441,4.565,1803.7,1803.3,3.5182859]
[1745982520744,4.565,1803.7,1803.1,2.54408271]
[1745982520745,1.60727478,1803.6,1803.1,2.54408271]
[1745982522538,1.60727478,1803.6,1803.1,2.96425124]
[1745982526032,1.60727478,1803.6,1803.1,8.5102521]
[1745982526344,1.60727478,1803.6,1803.2,0.85102521]
[1745982526543,0.8177,1803.5,1803.1,0.05]
[1745982526748,1.60041238,1803.5,1803.1,0.05]
[1745982527055,0.8177,1803.4,1803.1,0.05]
[1745982527208,4.566,1803.3,1803.1,0.05]
[1745982527550,1.60041238,1803.2,1803.1,0.05]
[1745982528357,0.78271238,1803.2,1803.1,1.75398271]
[1745982529260,0.78271238,1803.2,1803.1,2.48401077]
[1745982529464,0.78271238,1803.2,1803.1,1.75398271]
[1745982530164,0.78271238,1803.2,1803.1,2.17920565]
[1745982531384,0.78271238,1803.2,1803.1,8.53850975]
[1745982531968,4.567,1803.5,1803.2,5.54554679]
[1745982532188,4.567,1803.5,1803.3,2.25853739]
[1745982532778,5.3506,1803.6,1803.3,2.25853739]
[1745982532982,4.567,1803.6,1803.3,7.80382635]
[1745982533397,4.567,1803.6,1803.3,2.25853739]
[1745982534803,4.567,1803.6,1803.3,7.80381451]
[1745982534973,4.567,1803.6,1803.4,0.78038145]
[1745982536004,0.78193977,1803.5,1803.4,0.78038145]
[1745982537474,0.78193977,1803.5,1803.3,1.70398271]
[1745982537873,0.78193977,1803.5,1803.4,6.34758151]
[1745982538197,4.567,1803.7,1803.4,6.34758151]
[1745982538370,0.78177419,1803.6,1803.4,6.34758151]
[1745982538775,0.78177419,1803.6,1803.5,7.24875676]
[1745982539019,4.567,1803.8,1803.5,8.60839059]
[1745982539236,0.78227092,1803.7,1803.5,8.60839059]
[1745982539379,0.78227092,1803.7,1803.5,3.06361654]
[1745982540383,0.78227092,1803.7,1803.5,8.60838344]
[1745982540778,0.78227092,1803.7,1803.5,3.06361654]
[1745982540994,0.78227092,1803.7,1803.6,0.30636165]
[1745982542182,1.09239586,1803.7,1803.6,0.30636165]
[1745982545635,1.85349586,1803.7,1803.3,7.24919085]
[1745982545799,1.85349586,1803.7,1803.3,12.79436466]
[1745982545995,1.85349586,1803.7,1803.4,5.54504008]
[1745982546296,1.09239586,1803.7,1803.4,5.54504008]
[1745982546479,0.31012494,1803.6,1803.4,11.14537774]
[1745982546695,0.31012494,1803.6,1803.5,6.65931182]
[1745982547126,0.31012494,1803.6,1803.5,6.71475351]
[1745982547306,0.31012494,1803.6,1803.5,6.65931182]
[1745982547503,0.31012494,1803.6,1803.5,6.71475319]
[1745982547705,0.31012494,1803.7,1803.5,6.65931182]
[1745982547907,0.31012494,1803.7,1803.6,0.66593118]
[1745982548928,0.31012494,1803.7,1803.6,6.2103978]
[1745982549091,0.31012494,1803.7,1803.6,7.08253379]
[1745982549631,0.31012494,1803.7,1803.6,7.44098595]
[1745982549832,4.567,1803.9,1803.6,7.44098595]
[1745982550432,4.567,1803.9,1803.7,0.7440986]
[1745982550601,0.31016736,1803.8,1803.7,0.7440986]
[1745982551033,1.09431469,1803.8,1803.7,0.7440986]
[1745982551205,0.78414733,1803.8,1803.7,0.7440986]
[1745982552850,0.78414733,1803.8,1803.6,0.41388815]
[1745982553133,1.55834733,1803.8,1803.5,8.36328956]
[1745982553819,1.55834733,1803.8,1803.5,13.90784172]
[1745982554026,1.55834733,1803.8,1803.5,8.36307264]
[1745982554537,1.55834733,1803.8,1803.5,13.90762815]
[1745982554740,0.78414733,1803.8,1803.6,6.9350973]
[1745982557742,0.78414733,1803.8,1803.6,7.36145603]
[1745982558106,0.78414733,1803.8,1803.6,7.36139752]
[1745982558443,0.78414733,1803.8,1803.7,6.31025922]
[1745982559346,0.78414733,1803.8,1803.7,0.7661]
[1745982559545,1.09441631,1803.8,1803.6,7.36139752]
[1745982559841,1.09441631,1803.8,1803.6,0.42635873]
[1745982560010,1.09441631,1803.8,1803.6,5.54444393]
[1745982560443,0.78414733,1803.8,1803.6,6.90035319]
[1745982561642,0.78414733,1803.8,1803.6,7.32200698]
[1745982562233,0.78414733,1803.8,1803.7,0.05543589]
[1745982562410,0.78414733,1803.8,1803.6,12.86618898]
[1745982562744,0.78414733,1803.8,1803.6,7.32182398]
[1745982562946,0.78414733,1803.8,1803.7,0.7321824]
[1745982563242,1.09465198,1803.8,1803.7,0.7321824]
[1745982565124,1.09465198,1803.8,1803.7,6.27634162]
[1745982565329,1.09465198,1803.8,1803.7,8.79052433]
[1745982566017,0.78414733,1803.8,1803.7,8.79052433]
[1745982566347,0.78480949,1803.8,1803.7,8.79052433]
[1745982566549,4.566,1804.1,1803.7,8.79052433]
[1745982566848,0.78480949,1804.0,1803.7,8.79052433]
[1745982567049,0.78480949,1804.0,1803.8,0.87905243]
[1745982567248,0.31069581,1803.9,1803.8,0.87905243]
[1745982567748,1.0955053,1803.9,1803.8,0.87905243]
[1745982579369,1.0955053,1803.9,1803.7,3.24636511]
[1745982579788,1.0955053,1803.9,1803.7,2.43616511]
[1745982579789,0.31069581,1803.8,1803.7,2.43616511]
[1745982584384,1.11129581,1803.8,1803.5,3.68850646]
[1745982584587,1.89787084,1803.8,1803.5,3.68850646]
[1745982584791,4.565,1803.7,1803.5,3.68850646]